[Event "Titled Tuesday Blitz June 28 Early 2022"]
[White "Mosutha, Thuso"]
[Black "Sadykov, Ramil"]
[WhiteFideId "11302550"]
[BlackFideId "24113590"]
[WhiteElo "2028"]
[BlackElo "2226"]
[Result "0-1"]
[Round "02"]
[TimeControl "180+1"]
[Date "2022.06.28"]
[WhiteClock "0:00:02"]
[BlackClock "0:00:03"]

1. d4 {[%clk 0:03:00]}  Nf6 {[%clk 0:02:59]} 2. c4 {[%clk 0:03:00]}  g6 {[%clk 0:02:58]} 3. Nf3 {[%clk 0:03:00]}  Bg7 {[%clk 0:02:58]} 4. g3 {[%clk 0:03:00]}  O-O {[%clk 0:02:56]} 5. Bg2 {[%clk 0:03:00]}  d5 {[%clk 0:02:56]} 6. O-O {[%clk 0:03:00]}  dxc4 {[%clk 0:02:56]} 7. Nc3 {[%clk 0:02:59]}  c5 {[%clk 0:02:47]} 8. dxc5 {[%clk 0:02:54]}  Qc7 {[%clk 0:02:48]} 9. Be3 {[%clk 0:02:44]}  Rd8 {[%clk 0:02:42]} 10. Qa4 {[%clk 0:02:43]}  Ng4 {[%clk 0:02:38]} 11. Nb5 {[%clk 0:02:19]}  Qd7 {[%clk 0:01:48]} 12. Rfd1 {[%clk 0:02:05]}  Qe8 {[%clk 0:01:48]} 13. Rxd8 {[%clk 0:01:40]}  Qxd8 {[%clk 0:01:49]} 14. Rd1 {[%clk 0:01:40]}  Qe8 {[%clk 0:01:37]} 15. Qxc4 {[%clk 0:01:36]}  Be6 {[%clk 0:01:31]} 16. Qd3 {[%clk 0:01:23]}  Nxe3 {[%clk 0:01:19]} 17. Nc7 {[%clk 0:01:23]}  Qc8 {[%clk 0:01:18]} 18. Qd8+ {[%clk 0:01:21]}  Bf8 {[%clk 0:01:01]} 19. Qxc8 {[%clk 0:01:21]}  Bxc8 {[%clk 0:01:02]} 20. Rd8 {[%clk 0:01:21]}  Nc6 {[%clk 0:00:54]} 21. Rxf8+ {[%clk 0:01:18]}  Kxf8 {[%clk 0:00:55]} 22. Nxa8 {[%clk 0:01:19]}  Nxg2 {[%clk 0:00:54]} 23. Kxg2 {[%clk 0:01:19]}  e5 {[%clk 0:00:45]} 24. Nc7 {[%clk 0:01:17]}  f6 {[%clk 0:00:39]} 25. a3 {[%clk 0:01:12]}  e4 {[%clk 0:00:38]} 26. Nd2 {[%clk 0:01:12]}  f5 {[%clk 0:00:38]} 27. Nc4 {[%clk 0:01:10]}  Ke7 {[%clk 0:00:35]} 28. Nd6 {[%clk 0:01:08]}  Bd7 {[%clk 0:00:35]} 29. Nxb7 {[%clk 0:01:06]}  Nd4 {[%clk 0:00:33]} 30. Nd5+ {[%clk 0:01:00]}  Ke6 {[%clk 0:00:29]} 31. Nf4+ {[%clk 0:00:59]}  Ke5 {[%clk 0:00:28]} 32. Nd6 {[%clk 0:00:51]}  g5 {[%clk 0:00:24]} 33. Nc4+ {[%clk 0:00:46]}  Kf6 {[%clk 0:00:20]} 34. Nd5+ {[%clk 0:00:44]}  Ke6 {[%clk 0:00:20]} 35. Nc7+ {[%clk 0:00:43]}  Ke7 {[%clk 0:00:20]} 36. e3 {[%clk 0:00:42]}  Nb3 {[%clk 0:00:19]} 37. Nd5+ {[%clk 0:00:32]}  Ke6 {[%clk 0:00:19]} 38. Nb4 {[%clk 0:00:29]}  Nxc5 {[%clk 0:00:18]} 39. Nc2 {[%clk 0:00:24]}  Kd5 {[%clk 0:00:18]} 40. Nd2 {[%clk 0:00:22]}  Nd3 {[%clk 0:00:18]} 41. f3 {[%clk 0:00:19]}  exf3+ {[%clk 0:00:08]} 42. Kxf3 {[%clk 0:00:20]}  Nxb2 {[%clk 0:00:08]} 43. Nb4+ {[%clk 0:00:17]}  Ke5 {[%clk 0:00:06]} 44. e4 {[%clk 0:00:08]}  a5 {[%clk 0:00:07]} 45. Na6 {[%clk 0:00:05]}  Bc6 {[%clk 0:00:02]} 46. Nc5 {[%clk 0:00:04]}  fxe4+ {[%clk 0:00:03]} 47. Ndxe4 {[%clk 0:00:05]}  Kd4 {[%clk 0:00:01]} 48. Ne6+ {[%clk 0:00:04]}  Ke5 {[%clk 0:00:02]} 49. Nc5 {[%clk 0:00:02]}  Bd5 {[%clk 0:00:02]} 50. Ke3 {[%clk 0:00:02]}  Nc4+ {[%clk 0:00:02]} 51. Kd3 {[%clk 0:00:03]}  Nb2+ {[%clk 0:00:03]} 52. Ke3 {[%clk 0:00:02]}  g4 {[%clk 0:00:03]} 0-1


[Site "https://www.chess.com"]

[Event "Titled Tuesday Blitz June 28 Early 2022"]
[White "Nakamura, Hikaru"]
[Black "Yaksin, Oleg"]
[WhiteFideId "2016192"]
[BlackFideId "24105880"]
[WhiteElo "2850"]
[BlackElo "2256"]
[Result "1-0"]
[Round "02"]
[TimeControl "180+1"]
[Date "2022.06.28"]
[WhiteClock "0:02:27"]
[BlackClock "0:01:43"]

1. Nf3 {[%clk 0:03:00]}  d5 {[%clk 0:02:50]} 2. b3 {[%clk 0:03:00]}  Nf6 {[%clk 0:02:46]} 3. Bb2 {[%clk 0:03:00]}  c6 {[%clk 0:02:47]} 4. e3 {[%clk 0:03:00]}  Bf5 {[%clk 0:02:45]} 5. g3 {[%clk 0:03:00]}  e6 {[%clk 0:02:45]} 6. Bg2 {[%clk 0:03:00]}  h6 {[%clk 0:02:45]} 7. O-O {[%clk 0:03:00]}  Be7 {[%clk 0:02:46]} 8. d3 {[%clk 0:03:00]}  O-O {[%clk 0:02:46]} 9. Nbd2 {[%clk 0:03:01]}  Nbd7 {[%clk 0:02:47]} 10. Qe2 {[%clk 0:03:01]}  Bh7 {[%clk 0:02:45]} 11. e4 {[%clk 0:03:01]}  c5 {[%clk 0:02:41]} 12. Rfe1 {[%clk 0:02:56]}  b5 {[%clk 0:02:33]} 13. Ne5 {[%clk 0:02:49]}  Nxe5 {[%clk 0:02:29]} 14. Bxe5 {[%clk 0:02:49]}  dxe4 {[%clk 0:02:29]} 15. dxe4 {[%clk 0:02:46]}  Nd7 {[%clk 0:02:25]} 16. Bb2 {[%clk 0:02:46]}  e5 {[%clk 0:02:21]} 17. Qxb5 {[%clk 0:02:45]}  Qc7 {[%clk 0:02:19]} 18. Qe2 {[%clk 0:02:43]}  Rad8 {[%clk 0:02:15]} 19. Nc4 {[%clk 0:02:42]}  Bf6 {[%clk 0:02:15]} 20. Ne3 {[%clk 0:02:43]}  Nb6 {[%clk 0:02:14]} 21. a4 {[%clk 0:02:42]}  a5 {[%clk 0:02:14]} 22. Bc3 {[%clk 0:02:42]}  Ra8 {[%clk 0:02:09]} 23. Qb5 {[%clk 0:02:38]}  Rfb8 {[%clk 0:01:57]} 24. Bxa5 {[%clk 0:02:32]}  Qd6 {[%clk 0:01:57]} 25. Bxb6 {[%clk 0:02:32]}  Rxb6 {[%clk 0:01:56]} 26. Qe2 {[%clk 0:02:31]}  Rb4 {[%clk 0:01:55]} 27. Nd5 {[%clk 0:02:30]}  Rb7 {[%clk 0:01:52]} 28. Rad1 {[%clk 0:02:30]}  Bd8 {[%clk 0:01:48]} 29. Rd3 {[%clk 0:02:27]}  c4 {[%clk 0:01:46]} 30. bxc4 {[%clk 0:02:27]}  Rxa4 {[%clk 0:01:43]} 31. Nc3 {[%clk 0:02:27]} 1-0


[Site "https://www.chess.com"]

[Event "Titled Tuesday Blitz June 28 Early 2022"]
[White "Narayanan.S.L"]
[Black "Marjanovic, Annamaria"]
[WhiteFideId "5058422"]
[BlackFideId "750930"]
[WhiteElo "2494"]
[BlackElo "2156"]
[Result "1-0"]
[Round "02"]
[TimeControl "180+1"]
[Date "2022.06.28"]
[WhiteClock "0:01:40"]
[BlackClock "0:00:08"]

1. g3 {[%clk 0:02:58]}  f5 {[%clk 0:02:58]} 2. Bg2 {[%clk 0:02:58]}  Nf6 {[%clk 0:02:58]} 3. d4 {[%clk 0:02:58]}  g6 {[%clk 0:02:59]} 4. Nf3 {[%clk 0:02:58]}  Bg7 {[%clk 0:02:59]} 5. O-O {[%clk 0:02:59]}  O-O {[%clk 0:02:59]} 6. Nbd2 {[%clk 0:02:58]}  d6 {[%clk 0:02:58]} 7. Re1 {[%clk 0:02:59]}  Nc6 {[%clk 0:02:55]} 8. e4 {[%clk 0:02:58]}  fxe4 {[%clk 0:02:54]} 9. Nxe4 {[%clk 0:02:59]}  Nxe4 {[%clk 0:02:55]} 10. Rxe4 {[%clk 0:02:59]}  Bf5 {[%clk 0:02:55]} 11. Re3 {[%clk 0:03:00]}  Bg4 {[%clk 0:02:52]} 12. c3 {[%clk 0:03:00]}  e5 {[%clk 0:02:47]} 13. dxe5 {[%clk 0:03:00]}  Nxe5 {[%clk 0:02:45]} 14. Qb3+ {[%clk 0:03:00]}  Kh8 {[%clk 0:02:41]} 15. Nxe5 {[%clk 0:03:00]}  dxe5 {[%clk 0:02:32]} 16. Re1 {[%clk 0:02:53]}  Rb8 {[%clk 0:02:30]} 17. Be3 {[%clk 0:02:53]}  b6 {[%clk 0:02:28]} 18. h3 {[%clk 0:02:52]}  Bf3 {[%clk 0:02:17]} 19. Bxf3 {[%clk 0:02:52]}  Rxf3 {[%clk 0:02:17]} 20. Rad1 {[%clk 0:02:53]}  Qe7 {[%clk 0:02:13]} 21. Qd5 {[%clk 0:02:52]}  Rbf8 {[%clk 0:02:11]} 22. Re2 {[%clk 0:02:51]}  Qf6 {[%clk 0:01:58]} 23. Qe4 {[%clk 0:02:42]}  Qe6 {[%clk 0:01:49]} 24. Kg2 {[%clk 0:02:42]}  R3f7 {[%clk 0:01:44]} 25. b3 {[%clk 0:02:41]}  Qf5 {[%clk 0:01:42]} 26. Qxf5 {[%clk 0:02:41]}  gxf5 {[%clk 0:01:42]} 27. f3 {[%clk 0:02:36]}  c5 {[%clk 0:01:37]} 28. c4 {[%clk 0:02:35]}  f4 {[%clk 0:01:34]} 29. gxf4 {[%clk 0:02:32]}  exf4 {[%clk 0:01:35]} 30. Bf2 {[%clk 0:02:32]}  Bf6 {[%clk 0:01:30]} 31. Rd5 {[%clk 0:02:29]}  Rg7+ {[%clk 0:01:20]} 32. Kf1 {[%clk 0:02:29]}  Rfg8 {[%clk 0:01:17]} 33. Re6 {[%clk 0:02:30]}  Bd4 {[%clk 0:00:55]} 34. Rxd4 {[%clk 0:02:29]}  cxd4 {[%clk 0:00:50]} 35. Bxd4 {[%clk 0:02:30]}  Rd8 {[%clk 0:00:47]} 36. Bxg7+ {[%clk 0:02:30]}  Kxg7 {[%clk 0:00:48]} 37. Ke2 {[%clk 0:02:30]}  Rd7 {[%clk 0:00:46]} 38. Re4 {[%clk 0:02:29]}  Rf7 {[%clk 0:00:46]} 39. b4 {[%clk 0:02:29]}  Kg6 {[%clk 0:00:45]} 40. c5 {[%clk 0:02:30]}  bxc5 {[%clk 0:00:44]} 41. bxc5 {[%clk 0:02:31]}  Kf5 {[%clk 0:00:44]} 42. Rc4 {[%clk 0:02:29]}  Rc7 {[%clk 0:00:44]} 43. c6 {[%clk 0:02:30]}  Ke5 {[%clk 0:00:44]} 44. Kd3 {[%clk 0:02:30]}  Kd5 {[%clk 0:00:42]} 45. h4 {[%clk 0:02:30]}  Ke5 {[%clk 0:00:36]} 46. a4 {[%clk 0:02:29]}  Kd5 {[%clk 0:00:36]} 47. a5 {[%clk 0:02:29]}  Ke5 {[%clk 0:00:36]} 48. Rc5+ {[%clk 0:02:23]}  Kd6 {[%clk 0:00:35]} 49. Kd4 {[%clk 0:02:24]}  Rxc6 {[%clk 0:00:24]} 50. Rxc6+ {[%clk 0:02:24]}  Kxc6 {[%clk 0:00:25]} 51. Ke5 {[%clk 0:02:24]}  Kb5 {[%clk 0:00:25]} 52. Kxf4 {[%clk 0:02:25]}  Kxa5 {[%clk 0:00:25]} 53. Kg5 {[%clk 0:02:26]}  Kb5 {[%clk 0:00:19]} 54. f4 {[%clk 0:02:26]}  a5 {[%clk 0:00:20]} 55. f5 {[%clk 0:02:27]}  a4 {[%clk 0:00:21]} 56. f6 {[%clk 0:02:28]}  a3 {[%clk 0:00:21]} 57. f7 {[%clk 0:02:28]}  a2 {[%clk 0:00:22]} 58. f8=Q {[%clk 0:02:29]}  a1=Q {[%clk 0:00:22]} 59. Qe8+ {[%clk 0:02:29]}  Kc4 {[%clk 0:00:21]} 60. Qf7+ {[%clk 0:02:29]}  Kd3 {[%clk 0:00:20]} 61. Qxh7+ {[%clk 0:02:29]}  Ke3 {[%clk 0:00:19]} 62. Qe7+ {[%clk 0:02:28]}  Kf3 {[%clk 0:00:18]} 63. h5 {[%clk 0:02:26]}  Qa5+ {[%clk 0:00:17]} 64. Kg6 {[%clk 0:02:24]}  Kf4 {[%clk 0:00:13]} 65. Qf6+ {[%clk 0:02:20]}  Kg4 {[%clk 0:00:13]} 66. h6 {[%clk 0:02:17]}  Qh5+ {[%clk 0:00:12]} 67. Kg7 {[%clk 0:02:17]}  Qb5 {[%clk 0:00:12]} 68. h7 {[%clk 0:02:17]}  Qb7+ {[%clk 0:00:11]} 69. Qf7 {[%clk 0:02:13]}  Qb2+ {[%clk 0:00:11]} 70. Kg8 {[%clk 0:02:14]}  Qb8+ {[%clk 0:00:11]} 71. Qf8 {[%clk 0:02:11]}  Qb3+ {[%clk 0:00:11]} 72. Kg7 {[%clk 0:02:10]}  Qc3+ {[%clk 0:00:10]} 73. Kf7 {[%clk 0:01:54]}  Qf3+ {[%clk 0:00:09]} 74. Kg8 {[%clk 0:01:54]}  Qd5+ {[%clk 0:00:09]} 75. Qf7 {[%clk 0:01:53]}  Qd8+ {[%clk 0:00:09]} 76. Kg7 {[%clk 0:01:53]}  Qd4+ {[%clk 0:00:09]} 77. Qf6 {[%clk 0:01:38]}  Qd7+ {[%clk 0:00:09]} 78. Kg8 {[%clk 0:01:39]}  Qc8+ {[%clk 0:00:08]} 79. Kf7 {[%clk 0:01:39]}  Qd7+ {[%clk 0:00:08]} 80. Qe7 {[%clk 0:01:40]}  Qf5+ {[%clk 0:00:08]} 81. Kg7 {[%clk 0:01:40]} 1-0


[Site "https://www.chess.com"]

[Event "Titled Tuesday Blitz June 28 Early 2022"]
[White "Omariev, Maksim"]
[Black "Bommini, Mounika Akshaya"]
[WhiteFideId "4193423"]
[BlackFideId "25019872"]
[WhiteElo "2492"]
[BlackElo "1680"]
[Result "0-1"]
[Round "02"]
[TimeControl "180+1"]
[Date "2022.06.28"]
[WhiteClock "0:00:01"]
[BlackClock "0:00:08"]

1. g4 {[%clk 0:03:00]}  d5 {[%clk 0:02:57]} 2. Bg2 {[%clk 0:03:01]}  Bxg4 {[%clk 0:02:56]} 3. c4 {[%clk 0:03:00]}  c6 {[%clk 0:02:42]} 4. Qb3 {[%clk 0:02:56]}  Qb6 {[%clk 0:02:36]} 5. cxd5 {[%clk 0:02:54]}  Qxb3 {[%clk 0:02:36]} 6. axb3 {[%clk 0:02:55]}  Nf6 {[%clk 0:02:31]} 7. Nc3 {[%clk 0:02:55]}  e6 {[%clk 0:02:23]} 8. h3 {[%clk 0:02:50]}  Bh5 {[%clk 0:02:15]} 9. dxe6 {[%clk 0:02:50]}  fxe6 {[%clk 0:02:16]} 10. Nf3 {[%clk 0:02:26]}  Nbd7 {[%clk 0:02:12]} 11. Ng5 {[%clk 0:02:17]}  Nc5 {[%clk 0:01:46]} 12. Ra3 {[%clk 0:02:14]}  Bf7 {[%clk 0:01:26]} 13. d4 {[%clk 0:02:03]}  Ncd7 {[%clk 0:01:21]} 14. Ra1 {[%clk 0:01:39]}  Bd6 {[%clk 0:01:21]} 15. e4 {[%clk 0:01:33]}  Bb4 {[%clk 0:01:19]} 16. Be3 {[%clk 0:01:27]}  O-O {[%clk 0:01:19]} 17. Nxf7 {[%clk 0:01:07]}  Rxf7 {[%clk 0:01:18]} 18. O-O {[%clk 0:00:56]}  a6 {[%clk 0:01:12]} 19. f4 {[%clk 0:00:52]}  Raf8 {[%clk 0:01:09]} 20. f5 {[%clk 0:00:46]}  e5 {[%clk 0:00:58]} 21. Ne2 {[%clk 0:00:37]}  Re7 {[%clk 0:00:50]} 22. d5 {[%clk 0:00:33]}  cxd5 {[%clk 0:00:47]} 23. exd5 {[%clk 0:00:34]}  Nc5 {[%clk 0:00:30]} 24. Bxc5 {[%clk 0:00:12]}  Bxc5+ {[%clk 0:00:30]} 25. Kh2 {[%clk 0:00:13]}  Rd8 {[%clk 0:00:30]} 26. Nc3 {[%clk 0:00:13]}  Rd6 {[%clk 0:00:24]} 27. Rad1 {[%clk 0:00:12]}  Bd4 {[%clk 0:00:24]} 28. Rfe1 {[%clk 0:00:12]}  Red7 {[%clk 0:00:23]} 29. Ne4 {[%clk 0:00:12]}  Nxe4 {[%clk 0:00:21]} 30. Bxe4 {[%clk 0:00:13]}  Rc7 {[%clk 0:00:21]} 31. Re2 {[%clk 0:00:13]}  Kf7 {[%clk 0:00:22]} 32. Kg3 {[%clk 0:00:13]}  Kf6 {[%clk 0:00:22]} 33. Kf3 {[%clk 0:00:13]}  Rc5 {[%clk 0:00:21]} 34. h4 {[%clk 0:00:13]}  Rb5 {[%clk 0:00:21]} 35. Rd3 {[%clk 0:00:13]}  Rdb6 {[%clk 0:00:22]} 36. Rc2 {[%clk 0:00:11]}  Rxb3 {[%clk 0:00:20]} 37. Rxb3 {[%clk 0:00:06]}  Rxb3+ {[%clk 0:00:20]} 38. Kg4 {[%clk 0:00:04]}  Rxb2 {[%clk 0:00:18]} 39. Rc7 {[%clk 0:00:03]}  Rb1 {[%clk 0:00:16]} 40. d6 {[%clk 0:00:04]}  Rg1+ {[%clk 0:00:16]} 41. Kf3 {[%clk 0:00:03]}  Rf1+ {[%clk 0:00:16]} 42. Kg3 {[%clk 0:00:03]}  Rg1+ {[%clk 0:00:16]} 43. Kh2 {[%clk 0:00:02]}  Rd1 {[%clk 0:00:17]} 44. Bd5 {[%clk 0:00:02]}  Bg1+ {[%clk 0:00:15]} 45. Kg2 {[%clk 0:00:01]}  Rxd5 {[%clk 0:00:14]} 46. Kxg1 {[%clk 0:00:02]}  Rxd6 {[%clk 0:00:14]} 47. Rxb7 {[%clk 0:00:02]}  Kxf5 {[%clk 0:00:15]} 48. Rxg7 {[%clk 0:00:03]}  Rh6 {[%clk 0:00:15]} 49. Rg5+ {[%clk 0:00:02]}  Ke4 {[%clk 0:00:15]} 50. h5 {[%clk 0:00:01]}  Kf4 {[%clk 0:00:15]} 51. Rg7 {[%clk 0:00:01]}  Rxh5 {[%clk 0:00:15]} 52. Ra7 {[%clk 0:00:02]}  Rh6 {[%clk 0:00:15]} 53. Kf2 {[%clk 0:00:02]}  e4 {[%clk 0:00:12]} 54. Rb7 {[%clk 0:00:01]}  Rh2+ {[%clk 0:00:11]} 55. Kg1 {[%clk 0:00:01]}  Rc2 {[%clk 0:00:11]} 56. Rf7+ {[%clk 0:00:01]}  Ke3 {[%clk 0:00:11]} 57. Rxh7 {[%clk 0:00:01]}  Rc1+ {[%clk 0:00:11]} 58. Kg2 {[%clk 0:00:02]}  Ke2 {[%clk 0:00:11]} 59. Ra7 {[%clk 0:00:02]}  Ra1 {[%clk 0:00:11]} 60. Re7 {[%clk 0:00:02]}  e3 {[%clk 0:00:11]} 61. Kg3 {[%clk 0:00:02]}  Ra4 {[%clk 0:00:11]} 62. Re6 {[%clk 0:00:01]}  Kd2 {[%clk 0:00:08]} 0-1


[Site "https://www.chess.com"]

[Event "Titled Tuesday Blitz June 28 Early 2022"]
[White "Orlov, Georgi"]
[Black "Costachi, Mihnea"]
[WhiteFideId "2011271"]
[BlackFideId "1217518"]
[WhiteElo "2518"]
[BlackElo "2476"]
[Result "1/2-1/2"]
[Round "02"]
[TimeControl "180+1"]
[Date "2022.06.28"]
[WhiteClock "0:00:08"]
[BlackClock "0:00:05"]

1. d4 {[%clk 0:03:00]}  Nf6 {[%clk 0:02:58]} 2. Nf3 {[%clk 0:03:00]}  d5 {[%clk 0:02:57]} 3. c4 {[%clk 0:03:00]}  g6 {[%clk 0:02:57]} 4. cxd5 {[%clk 0:02:59]}  Nxd5 {[%clk 0:02:56]} 5. e4 {[%clk 0:02:58]}  Nb6 {[%clk 0:02:56]} 6. Nc3 {[%clk 0:02:57]}  Bg7 {[%clk 0:02:56]} 7. Be3 {[%clk 0:02:52]}  O-O {[%clk 0:02:54]} 8. h3 {[%clk 0:02:48]}  Nc6 {[%clk 0:02:54]} 9. Be2 {[%clk 0:02:47]}  Na5 {[%clk 0:02:50]} 10. b3 {[%clk 0:02:44]}  c5 {[%clk 0:02:50]} 11. Rc1 {[%clk 0:02:42]}  cxd4 {[%clk 0:02:48]} 12. Bxd4 {[%clk 0:02:41]}  Nc6 {[%clk 0:02:34]} 13. Bxg7 {[%clk 0:02:39]}  Kxg7 {[%clk 0:02:34]} 14. O-O {[%clk 0:02:36]}  f6 {[%clk 0:02:23]} 15. Qxd8 {[%clk 0:02:25]}  Rxd8 {[%clk 0:02:23]} 16. Rfd1 {[%clk 0:02:24]}  Be6 {[%clk 0:02:19]} 17. Nb5 {[%clk 0:02:20]}  Rxd1+ {[%clk 0:02:17]} 18. Rxd1 {[%clk 0:02:19]}  Rc8 {[%clk 0:02:11]} 19. Rd2 {[%clk 0:02:00]}  a6 {[%clk 0:02:10]} 20. Nbd4 {[%clk 0:02:00]}  Nxd4 {[%clk 0:02:10]} 21. Nxd4 {[%clk 0:02:00]}  Bf7 {[%clk 0:02:04]} 22. f4 {[%clk 0:01:58]}  Rc1+ {[%clk 0:01:46]} 23. Kf2 {[%clk 0:01:57]}  Kf8 {[%clk 0:01:26]} 24. Bf3 {[%clk 0:01:57]}  e5 {[%clk 0:01:23]} 25. fxe5 {[%clk 0:01:56]}  fxe5 {[%clk 0:01:24]} 26. Nc2 {[%clk 0:01:47]}  Ke7 {[%clk 0:01:20]} 27. Ne3 {[%clk 0:01:42]}  h5 {[%clk 0:01:17]} 28. g4 {[%clk 0:01:36]}  hxg4 {[%clk 0:01:08]} 29. Nxg4 {[%clk 0:01:26]}  Nd7 {[%clk 0:01:08]} 30. Ne3 {[%clk 0:01:21]}  Be6 {[%clk 0:01:07]} 31. h4 {[%clk 0:01:11]}  Nf6 {[%clk 0:01:07]} 32. Rc2 {[%clk 0:01:08]}  Ra1 {[%clk 0:01:01]} 33. Rc7+ {[%clk 0:00:58]}  Kd6 {[%clk 0:00:59]} 34. Rxb7 {[%clk 0:00:58]}  Rxa2+ {[%clk 0:01:00]} 35. Kg3 {[%clk 0:00:58]}  Ra3 {[%clk 0:00:56]} 36. Rb6+ {[%clk 0:00:56]}  Kd7 {[%clk 0:00:54]} 37. Nd5 {[%clk 0:00:51]}  Nxd5 {[%clk 0:00:46]} 38. exd5 {[%clk 0:00:50]}  Bf5 {[%clk 0:00:47]} 39. Be2 {[%clk 0:00:40]}  Bc2 {[%clk 0:00:45]} 40. Bc4 {[%clk 0:00:39]}  a5 {[%clk 0:00:41]} 41. d6 {[%clk 0:00:29]}  Bxb3 {[%clk 0:00:22]} 42. Rxb3 {[%clk 0:00:19]}  Rxb3+ {[%clk 0:00:15]} 43. Bxb3 {[%clk 0:00:19]}  Kxd6 {[%clk 0:00:16]} 44. Kf3 {[%clk 0:00:19]}  Ke7 {[%clk 0:00:14]} 45. Bc2 {[%clk 0:00:13]}  Kf6 {[%clk 0:00:14]} 46. Kg4 {[%clk 0:00:14]}  e4 {[%clk 0:00:08]} 47. Kf4 {[%clk 0:00:11]}  e3 {[%clk 0:00:04]} 48. Kxe3 {[%clk 0:00:10]}  g5 {[%clk 0:00:05]} 49. h5 {[%clk 0:00:11]}  g4 {[%clk 0:00:05]} 50. Kf4 {[%clk 0:00:10]}  g3 {[%clk 0:00:05]} 51. Kxg3 {[%clk 0:00:09]}  Kg5 {[%clk 0:00:05]} 52. Bd1 {[%clk 0:00:08]}  a4 {[%clk 0:00:05]} 53. Bxa4 {[%clk 0:00:08]}  Kxh5 {[%clk 0:00:05]} 1/2-1/2


[Site "https://www.chess.com"]

[Event "Titled Tuesday Blitz June 28 Early 2022"]
[White "Ortega Ruiz, Jose Miguel"]
[Black "Garv Gaur"]
[WhiteFideId "2209713"]
[BlackFideId "45030839"]
[WhiteElo "2292"]
[BlackElo "1950"]
[Result "1-0"]
[Round "02"]
[TimeControl "180+1"]
[Date "2022.06.28"]
[WhiteClock "0:00:19"]
[BlackClock "0:00:06"]

1. Nf3 {[%clk 0:03:00]}  d5 {[%clk 0:02:58]} 2. g3 {[%clk 0:03:00]}  Nf6 {[%clk 0:02:58]} 3. Bg2 {[%clk 0:03:01]}  c5 {[%clk 0:02:59]} 4. O-O {[%clk 0:03:02]}  Nc6 {[%clk 0:03:00]} 5. d4 {[%clk 0:03:02]}  cxd4 {[%clk 0:02:57]} 6. Nxd4 {[%clk 0:02:55]}  e5 {[%clk 0:02:56]} 7. Nxc6 {[%clk 0:02:55]}  bxc6 {[%clk 0:02:57]} 8. c4 {[%clk 0:02:56]}  Be6 {[%clk 0:02:57]} 9. Qa4 {[%clk 0:02:56]}  Rc8 {[%clk 0:02:56]} 10. Nc3 {[%clk 0:02:55]}  Qd7 {[%clk 0:02:55]} 11. Rd1 {[%clk 0:02:49]}  d4 {[%clk 0:02:54]} 12. f4 {[%clk 0:02:36]}  Bc5 {[%clk 0:02:50]} 13. Kh1 {[%clk 0:02:32]}  exf4 {[%clk 0:02:48]} 14. Bxf4 {[%clk 0:02:31]}  O-O {[%clk 0:02:48]} 15. e3 {[%clk 0:02:21]}  Ng4 {[%clk 0:02:42]} 16. Ne4 {[%clk 0:02:19]}  Qe7 {[%clk 0:02:17]} 17. exd4 {[%clk 0:02:15]}  Bb6 {[%clk 0:01:43]} 18. Bd6 {[%clk 0:02:14]}  Qd7 {[%clk 0:01:42]} 19. Bxf8 {[%clk 0:02:06]}  Rxf8 {[%clk 0:01:39]} 20. d5 {[%clk 0:02:06]}  Bf5 {[%clk 0:01:35]} 21. dxc6 {[%clk 0:02:03]}  Qe7 {[%clk 0:01:34]} 22. Re1 {[%clk 0:01:38]}  Bxe4 {[%clk 0:01:32]} 23. Bxe4 {[%clk 0:01:39]}  Nf2+ {[%clk 0:01:30]} 24. Kg2 {[%clk 0:01:39]}  Nxe4 {[%clk 0:01:30]} 25. c5 {[%clk 0:01:37]}  Nxc5 {[%clk 0:01:16]} 26. Rxe7 {[%clk 0:01:28]}  Nxa4 {[%clk 0:01:16]} 27. b3 {[%clk 0:01:09]}  Nc5 {[%clk 0:01:15]} 28. Rd1 {[%clk 0:01:07]}  Rc8 {[%clk 0:01:07]} 29. b4 {[%clk 0:01:07]}  Ne6 {[%clk 0:01:06]} 30. Rdd7 {[%clk 0:01:05]}  h6 {[%clk 0:00:50]} 31. b5 {[%clk 0:01:03]}  Nc5 {[%clk 0:00:42]} 32. Rd5 {[%clk 0:00:59]}  Kf8 {[%clk 0:00:41]} 33. Re2 {[%clk 0:00:58]}  Ne6 {[%clk 0:00:41]} 34. a4 {[%clk 0:00:58]}  a6 {[%clk 0:00:40]} 35. Rd7 {[%clk 0:00:57]}  axb5 {[%clk 0:00:40]} 36. axb5 {[%clk 0:00:58]}  Nc5 {[%clk 0:00:39]} 37. Rd1 {[%clk 0:00:54]}  Ra8 {[%clk 0:00:35]} 38. h4 {[%clk 0:00:47]}  Ne6 {[%clk 0:00:35]} 39. Rd7 {[%clk 0:00:46]}  Nc5 {[%clk 0:00:35]} 40. Rde7 {[%clk 0:00:45]}  g6 {[%clk 0:00:28]} 41. g4 {[%clk 0:00:45]}  Ne6 {[%clk 0:00:26]} 42. Rb7 {[%clk 0:00:44]}  Nf4+ {[%clk 0:00:24]} 43. Kf3 {[%clk 0:00:44]}  Nxe2 {[%clk 0:00:24]} 44. Kxe2 {[%clk 0:00:43]}  Ba5 {[%clk 0:00:19]} 45. b6 {[%clk 0:00:42]}  Bxb6 {[%clk 0:00:18]} 46. Rxb6 {[%clk 0:00:43]}  Rc8 {[%clk 0:00:18]} 47. Kf3 {[%clk 0:00:41]}  Ke7 {[%clk 0:00:19]} 48. Rb7+ {[%clk 0:00:39]}  Ke6 {[%clk 0:00:18]} 49. Rb6 {[%clk 0:00:37]}  Kd6 {[%clk 0:00:18]} 50. Rb7 {[%clk 0:00:37]}  Rc7 {[%clk 0:00:18]} 51. Rb3 {[%clk 0:00:22]}  Rxc6 {[%clk 0:00:16]} 52. Ra3 {[%clk 0:00:22]}  Ke6 {[%clk 0:00:16]} 53. Re3+ {[%clk 0:00:22]}  Kf6 {[%clk 0:00:17]} 54. Kg3 {[%clk 0:00:23]}  Ra6 {[%clk 0:00:17]} 55. Rf3+ {[%clk 0:00:23]}  Kg7 {[%clk 0:00:17]} 56. Rb3 {[%clk 0:00:24]}  Ra4 {[%clk 0:00:17]} 57. Rd3 {[%clk 0:00:22]}  Kf6 {[%clk 0:00:15]} 58. Rf3+ {[%clk 0:00:22]}  Ke7 {[%clk 0:00:13]} 59. Re3+ {[%clk 0:00:21]}  Kf8 {[%clk 0:00:14]} 60. Rb3 {[%clk 0:00:22]}  Rc4 {[%clk 0:00:14]} 61. Rd3 {[%clk 0:00:22]}  Rc5 {[%clk 0:00:14]} 62. Re3 {[%clk 0:00:21]}  Kg7 {[%clk 0:00:12]} 63. Rf3 {[%clk 0:00:21]}  h5 {[%clk 0:00:11]} 64. gxh5 {[%clk 0:00:21]}  Rxh5 {[%clk 0:00:11]} 65. Ra3 {[%clk 0:00:22]}  Rc5 {[%clk 0:00:11]} 66. Rf3 {[%clk 0:00:21]}  f6 {[%clk 0:00:10]} 67. Ra3 {[%clk 0:00:21]}  Kh6 {[%clk 0:00:11]} 68. Rf3 {[%clk 0:00:22]}  Rc6 {[%clk 0:00:10]} 69. Ra3 {[%clk 0:00:21]}  Kh5 {[%clk 0:00:11]} 70. Ra5+ {[%clk 0:00:21]}  f5 {[%clk 0:00:11]} 71. Ra3 {[%clk 0:00:20]}  Rc4 {[%clk 0:00:06]} 72. Ra8 {[%clk 0:00:19]} 1-0


[Site "https://www.chess.com"]